fUSD/lending_fUSD_20250506
["ID","MTS","AMOUNT","RATE_DAILY","PERIOD"]
[360042277,1746512138329,-450.0,0.00019999,2]
[360042278,1746512138354,-450.0,0.00019999,2]
[360042279,1746512138379,-450.0,0.00019999,2]
[360042280,1746512138404,-450.0,0.00019999,2]
[360042281,1746512138429,-450.0,0.00019999,2]
[360042282,1746512138458,-450.0,0.00019999,2]
[360042283,1746512138484,-450.0,0.00019999,2]
[360042284,1746512138514,-450.0,0.00019999,2]
[360042285,1746512138548,-450.0,0.00019999,2]
[360042286,1746512138577,-450.0,0.00019999,2]
[360042287,1746512138609,-450.0,0.00019999,2]
[360042288,1746512138639,-450.0,0.00019999,2]
[360042289,1746512138670,-450.0,0.00019999,2]
[360042290,1746512138699,-486.44257844,0.00019999,2]
[360042291,1746512138726,-597.54559638,0.00019999,2]
[360042292,1746512138758,-450.0,0.00019999,2]
[360042293,1746512138809,-165.85,0.00019999,2]
[360042294,1746512138845,-287.77,0.00019999,2]
[360042295,1746512138881,-450.0,0.00019999,2]
[360042296,1746512138916,-450.0,0.00019999,2]
[360042297,1746512138951,-228.74629651,0.00019999,2]
[360042298,1746512138989,-450.0,0.00019999,2]
[360042299,1746512139022,-450.0,0.00019999,2]
[360042300,1746512139054,-450.0,0.00019999,2]
[360042301,1746512139087,-450.0,0.00019999,2]
[360042302,1746512139127,-450.0,0.00019999,2]
[360042303,1746512139162,-273.01,0.00019999,2]
[360042304,1746512139192,-573.55,0.00019999,2]
[360042305,1746512139222,-211.04,0.00019999,2]
[360042306,1746512139257,-450.0,0.00019999,2]
[360042307,1746512139289,-450.0,0.00019999,2]
[360042308,1746512139317,-450.0,0.00019999,2]
[360042309,1746512139347,-450.0,0.00019999,2]
[360042310,1746512139381,-508.25,0.00019999,2]
[360042311,1746512139411,-450.0,0.00019999,2]
[360042312,1746512139446,-207.87,0.00019999,2]
[360042314,1746512139478,-450.0,0.00019999,2]
[360042315,1746512139511,-450.0,0.00019999,2]
[360042316,1746512139544,-450.0,0.00019999,2]
[360042317,1746512139576,-238.71,0.00019999,2]
[360042318,1746512139606,-450.0,0.00019999,2]
[360042319,1746512139638,-450.0,0.00019999,2]
[360042320,1746512139669,-450.0,0.00019999,2]
[360042321,1746512139703,-450.0,0.00019999,2]
[360042322,1746512139733,-402.31,0.00019999,2]
[360042323,1746512139765,-548.10088172,0.00019999,2]
[360042324,1746512139796,-488.57,0.00019999,2]
[360042325,1746512139826,-450.0,0.00019999,2]
[360042326,1746512139858,-450.0,0.00019999,2]
[360042327,1746512139888,-450.0,0.00019999,2]
[360042328,1746512139918,-450.0,0.00019999,2]
[360042329,1746512139947,-450.0,0.00019999,2]
[360042330,1746512139976,-303.94374271,0.00019999,2]
[360042331,1746512140006,-450.0,0.00019999,2]
[360042332,1746512140036,-450.0,0.00019999,2]
[360042333,1746512140065,-211.42,0.00019999,2]
[360042334,1746512140093,-450.0,0.00019999,2]
[360042335,1746512140122,-231.95,0.00019999,2]
[360042336,1746512140151,-450.0,0.00019999,2]
[360042337,1746512140180,-533.37,0.00019999,2]
[360042338,1746512140208,-450.0,0.00019999,2]
[360042339,1746512140237,-497.10596228,0.00019999,2]
[360042340,1746512140266,-450.0,0.00019999,2]
[360042341,1746512140295,-234.05,0.00019999,2]
[360042342,1746512140323,-450.0,0.00019999,2]
[360042343,1746512140352,-683.6,0.00019999,2]
[360042344,1746512140380,-683.6,0.00019999,2]
[360042345,1746512140622,-683.6,0.00019999,2]
[360042346,1746512140660,-683.6,0.00019999,2]
[360042347,1746512140685,-683.6,0.00019999,2]
[360042348,1746512140710,-683.6,0.00019999,2]
[360042349,1746512140735,-683.6,0.00019999,2]
[360042350,1746512140760,-683.6,0.00019999,2]
[360042351,1746512140784,-683.6,0.00019999,2]
[360042352,1746512140808,-683.6,0.00019999,2]
[360042353,1746512140832,-683.6,0.00019999,2]
[360042354,1746512140856,-683.6,0.00019999,2]
[360042355,1746512140880,-683.6,0.00019999,2]
[360042356,1746512140904,-683.6,0.00019999,2]
[360042357,1746512140928,-450.0,0.00019999,2]
[360042358,1746512140954,-683.6,0.00019999,2]
[360042359,1746512140980,-683.6,0.00019999,2]
[360042360,1746512141004,-683.6,0.00019999,2]
[360042361,1746512141028,-683.6,0.00019999,2]
[360042362,1746512141052,-683.6,0.00019999,2]
[360042363,1746512141076,-683.6,0.00019999,2]
[360042364,1746512141100,-683.6,0.00019999,2]
[360042365,1746512141127,-683.6,0.00019999,2]
[360042366,1746512141152,-683.6,0.00019999,2]
[360042367,1746512141177,-450.0,0.00019999,2]
[360042368,1746512141202,-297.61,0.00019999,2]
[360042369,1746512141226,-683.63,0.00019999,2]
[360042370,1746512141251,-450.0,0.00019999,2]
[360042371,1746512141276,-450.0,0.00019999,2]
[360042372,1746512141302,-450.0,0.00019999,2]
[360042373,1746512141328,-450.0,0.00019999,2]
[360042374,1746512141355,-450.0,0.00019999,2]
[360042375,1746512141382,-450.0,0.00019999,2]
[360042376,1746512141408,-450.0,0.00019999,2]
[360042377,1746512141436,-317.86,0.00019999,2]
[360042378,1746512141461,-450.0,0.00019999,2]
[360042379,1746512141486,-450.0,0.00019999,2]
[360042380,1746512141511,-532.0523107,0.00019999,2]
[360042381,1746512141535,-584.97252211,0.00019999,2]
[360042382,1746512141560,-513.14,0.00019999,2]
[360042383,1746512141587,-513.14,0.00019999,2]
[360042384,1746512141612,-513.14,0.00019999,2]
[360042385,1746512141638,-513.14,0.00019999,2]
[360042386,1746512141663,-513.14,0.00019999,2]
[360042387,1746512141687,-513.14,0.00019999,2]
[360042388,1746512141713,-513.14,0.00019999,2]
[360042389,1746512141737,-513.14,0.00019999,2]
[360042390,1746512141771,-513.14,0.00019999,2]
[360042391,1746512141802,-513.14,0.00019999,2]
[360042392,1746512141828,-450.0,0.00019999,2]
[360042393,1746512141855,-513.14,0.00019999,2]
[360042394,1746512141880,-513.14,0.00019999,2]
[360042395,1746512141906,-513.14,0.00019999,2]
[360042396,1746512141932,-450.0,0.00019999,2]
[360042397,1746512141958,-513.14,0.00019999,2]
[360042398,1746512141984,-513.14,0.00019999,2]
[360042399,1746512142011,-513.14,0.00019999,2]
[360042400,1746512142036,-513.14,0.00019999,2]
[360042401,1746512142062,-513.14,0.00019999,2]
[360042402,1746512142088,-513.14,0.00019999,2]
[360042403,1746512142113,-513.14,0.00019999,2]
[360042404,1746512142139,-513.14,0.00019999,2]
[360042405,1746512142164,-513.14,0.00019999,2]
[360042406,1746512142190,-513.35493922,0.00019999,2]
[360042407,1746512142216,-450.0,0.00019999,2]
[360042408,1746512142243,-450.0,0.00019999,2]
[360042409,1746512142269,-450.0,0.00019999,2]
[360042410,1746512142298,-450.0,0.00019999,2]
[360042411,1746512142325,-450.0,0.00019999,2]
[360042412,1746512142351,-450.0,0.00019999,2]
[360042413,1746512142377,-450.0,0.00019999,2]
[360042414,1746512142404,-450.0,0.00019999,2]
[360042415,1746512142432,-450.0,0.00019999,2]
[360042416,1746512142458,-450.0,0.00019999,2]
[360042417,1746512142485,-450.0,0.00019999,2]
[360042418,1746512142512,-450.0,0.00019999,2]
[360042419,1746512142540,-450.0,0.00019999,2]
[360042420,1746512142567,-450.0,0.00019999,2]
[360042421,1746512142593,-450.0,0.00019999,2]
[360042422,1746512142623,-450.0,0.00019999,2]
[360042423,1746512142650,-450.0,0.00019999,2]
[360042424,1746512142676,-450.0,0.00019999,2]
[360042425,1746512142701,-450.0,0.00019999,2]
[360042426,1746512142727,-450.0,0.00019999,2]
[360042427,1746512142752,-450.0,0.00019999,2]
[360042428,1746512142779,-450.0,0.00019999,2]
[360042429,1746512142805,-450.0,0.00019999,2]
[360042430,1746512142829,-450.0,0.00019999,2]
[360042431,1746512142855,-450.0,0.00019999,2]
[360042432,1746512142880,-384.63,0.00019999,2]
[360042433,1746512142907,-608.57,0.00019999,2]
[360042434,1746512142936,-608.57,0.00019999,2]
[360042435,1746512142963,-608.57,0.00019999,2]
[360042436,1746512142990,-608.57,0.00019999,2]
[360042437,1746512143182,-608.57,0.00019999,2]
[360042438,1746512143208,-608.57,0.00019999,2]
[360042439,1746512143235,-608.57,0.00019999,2]
[360042440,1746512143261,-608.57,0.00019999,2]
[360042441,1746512143288,-608.57,0.00019999,2]
[360042442,1746512143314,-608.57,0.00019999,2]
[360042443,1746512143340,-608.57,0.00019999,2]
[360042444,1746512143366,-608.57,0.00019999,2]
[360042445,1746512143392,-608.57,0.00019999,2]
[360042446,1746512143420,-608.57,0.00019999,2]
[360042447,1746512143452,-450.0,0.00019999,2]
[360042448,1746512143486,-450.0,0.00019999,2]
[360042449,1746512143519,-608.57,0.00019999,2]
[360042450,1746512143551,-450.0,0.00019999,2]
[360042451,1746512143580,-608.57,0.00019999,2]
[360042452,1746512143610,-450.0,0.00019999,2]
[360042453,1746512143639,-450.0,0.00019999,2]
[360042454,1746512143668,-608.57,0.00019999,2]
[360042455,1746512143699,-450.0,0.00019999,2]
[360042456,1746512143728,-608.57,0.00019999,2]
[360042457,1746512143758,-450.0,0.00019999,2]
[360042458,1746512143786,-608.57,0.00019999,2]
[360042459,1746512143814,-608.57,0.00019999,2]
[360042460,1746512143843,-450.0,0.00019999,2]
[360042461,1746512143870,-608.57,0.00019999,2]
[360042462,1746512143900,-450.0,0.00019999,2]
[360042463,1746512143927,-608.7,0.00019999,2]
[360042464,1746512143955,-450.0,0.00019999,2]
[360042465,1746512143984,-450.0,0.00019999,2]
[360042466,1746512144015,-450.0,0.00019999,2]
[360042467,1746512144044,-450.0,0.00019999,2]
[360042468,1746512144073,-450.0,0.00019999,2]
[360042469,1746512144099,-450.0,0.00019999,2]
[360042470,1746512144128,-450.0,0.00019999,2]
[360042471,1746512144157,-245.14,0.00019999,2]
[360042472,1746512144184,-547.2,0.00019999,2]
[360042473,1746512144211,-450.0,0.00019999,2]
[360042474,1746512144239,-450.0,0.00019999,2]
[360042475,1746512144267,-450.0,0.00019999,2]
[360042476,1746512144294,-450.0,0.00019999,2]
[360042477,1746512144322,-450.0,0.00019999,2]
[360042478,1746512144349,-450.0,0.00019999,2]
[360042479,1746512144379,-450.0,0.00019999,2]
[360042480,1746512144407,-450.0,0.00019999,2]
[360042481,1746512144437,-450.0,0.00019999,2]
[360042482,1746512144465,-450.0,0.00019999,2]
[360042483,1746512144493,-450.0,0.00019999,2]
[360042484,1746512144521,-450.0,0.00019999,2]
[360042485,1746512144549,-450.0,0.00019999,2]
[360042486,1746512144576,-450.0,0.00019999,2]
[360042487,1746512144605,-450.0,0.00019999,2]
[360042488,1746512144631,-450.0,0.00019999,2]
[360042489,1746512144661,-450.0,0.00019999,2]
[360042490,1746512144687,-450.0,0.00019999,2]
[360042491,1746512144715,-450.0,0.00019999,2]
[360042492,1746512144742,-450.0,0.00019999,2]
[360042493,1746512144770,-183.76816265,0.00019999,2]
[360042494,1746512144795,-450.0,0.00019999,2]
[360042495,1746512144822,-450.0,0.00019999,2]
[360042496,1746512144848,-450.0,0.00019999,2]
[360042497,1746512144873,-450.0,0.00019999,2]
[360042498,1746512144899,-306.79,0.00019999,2]
[360042499,1746512144927,-7596.47,0.00019999,2]
[360042500,1746512144956,-7596.47,0.00019999,2]
[360042501,1746512144984,-7596.47,0.00019999,2]
[360042502,1746512145013,-7596.47,0.00019999,2]
[360042503,1746512145041,-7596.47,0.00019999,2]
[360042504,1746512145068,-7596.47,0.00019999,2]
[360042505,1746512145096,-7596.47,0.00019999,2]
[360042506,1746512145124,-7596.47,0.00019999,2]
[360042507,1746512145152,-7596.47,0.00019999,2]
[360042508,1746512145180,-7596.47,0.00019999,2]
[360042509,1746512145209,-7596.47,0.00019999,2]
[360042510,1746512145236,-7596.47,0.00019999,2]
[360042511,1746512145264,-7596.47,0.00019999,2]
[360042512,1746512145293,-7596.47,0.00019999,2]
[360042513,1746512145322,-7596.47,0.00019999,2]
[360042514,1746512145350,-7596.47,0.00019999,2]
[360042515,1746512145379,-7596.47,0.00019999,2]
[360042516,1746512145408,-3284.13159472,0.00019999,2]
[360042525,1746512192605,3220.76473613,0.0001,2]
[360042543,1746512261207,1000.0,0.00019049,2]
[360042556,1746512306957,150.0,0.00019,2]
[360042608,1746512530600,502.06,0.0001705,2]
[360042609,1746512530792,502.06,0.00019314,2]
[360042613,1746512569992,1150.87,0.00030137,120]
[360042616,1746512589397,996.56,0.00019178,2]
[360042629,1746512710795,1269.455792,0.000154,2]
[360042635,1746512727980,789.71122203,0.00011,2]
[360042640,1746512754884,497.13143897,6.94e-05,2]
[360042642,1746512830228,1580.41667954,0.00015,2]
[360042647,1746512896646,805.34125131,0.000135,2]
[360042648,1746512896750,297.40853766,0.000125,2]
[360042649,1746512904201,1869.13213957,0.0001,2]
[360042650,1746512913077,216.67669643,0.0001,2]
[360042651,1746512913653,-165.38,0.00019513,2]
[360042652,1746512914579,1395.11321024,0.000149,2]
[360042653,1746512916878,-195.4268567,0.00019687,2]
[360042654,1746512919296,449.999999,0.000151,2]
[360042655,1746512921574,-54.5731433,0.00019687,2]
[360042656,1746512921596,-129.96573916,0.000197,2]
[360042662,1746512928185,-70.03426084,0.000197,2]
[360042663,1746512928213,-95.55758204,0.000197,2]
[360042664,1746512934970,-264.98170447,0.000197,2]
[360042665,1746512942852,-152.06,0.000197,2]
[360042666,1746512946035,-152.0,0.000197,2]
[360042667,1746512949619,-284.53888246,0.000197,2]
[360042668,1746512952806,-160.81946718,0.000197,2]
[360042669,1746512957788,-153.4,0.000197,2]
[360042670,1746512961638,-316.97379166,0.000197,2]
[360042671,1746512966070,-296.30003093,0.000197,2]
[360042672,1746512969541,-193.76925912,0.000197,2]
[360042676,1746512972327,157.32370609,0.0003,60]
[360042677,1746512975488,-246.0193205,0.000197,2]
[360042678,1746512981761,-199.52301395,0.000197,2]
[360042679,1746512985919,-263.02023384,0.000197,2]
[360042680,1746512989671,-391.85049164,0.000197,2]
[360042681,1746512993766,250.0,0.00018949,2]
[360042682,1746512999021,-168.41,0.000197,2]
[360042694,1746513031740,-1200.0,0.00019699,2]
[360042695,1746513031750,-300.0,0.00019699,2]
[360042696,1746513031759,-300.0,0.00019699,2]
[360042697,1746513031768,-250.0,0.000197,2]
[360042698,1746513031778,-42245.72898726,0.000197,2]
[360042699,1746513031787,-200.0,0.000197,2]
[360042700,1746513031796,-358.11,0.00019748,2]
[360042701,1746513031807,-315.750095,0.00019852,2]
[360042702,1746513031817,-253.340936,0.00019852,2]
[360042703,1746513031827,-198.38896,0.00019852,2]
[360042704,1746513031836,-12500.0,0.00019874,2]
[360042705,1746513031846,-260.56059026,0.0001988,2]
[360042706,1746513031856,-12500.0,0.00019882,2]
[360042707,1746513031865,-207.4,0.00019886,2]
[360042708,1746513031874,-10558.68479618,0.00019891,2]
[360042729,1746513036545,-1681.1783682,0.00019891,2]
[360042730,1746513036557,-260.13683562,0.00019891,2]
[360042731,1746513036567,-571.17732568,0.00019898,2]
[360042732,1746513036576,-158.21966123,0.00019898,2]
[360042733,1746513036585,-909.81724386,0.00019899,2]
[360042734,1746513036595,-909.81724386,0.00019899,2]
[360042735,1746513036604,-909.81724386,0.000199,2]
[360042736,1746513036614,-909.81724386,0.000199,2]
[360042737,1746513036623,-909.81724386,0.000199,2]
[360042738,1746513036632,-909.81724386,0.000199,2]
[360042739,1746513036642,-12500.0,0.000199,2]
[360042740,1746513036653,-909.81724386,0.000199,2]
[360042741,1746513036663,-1733.9278256,0.000199,2]
[360042742,1746513036674,-21720.8891603,0.000199,2]
[360042743,1746513036684,-260.4291143,0.000199,2]
[360042744,1746513036694,-1000.0,0.000199,2]
[360042745,1746513036703,-236.3789037,0.000199,2]
[360042746,1746513036712,-315.750095,0.00019972,2]
[360042747,1746513036723,-253.340936,0.00019972,2]
[360042748,1746513036733,-500.0,0.00019973,2]
[360042749,1746513036742,-501.97931032,0.00019973,2]
[360042750,1746513036751,-500.0,0.00019973,2]
[360042751,1746513036761,-500.0,0.00019973,2]
[360042752,1746513036770,-151.0,0.00019985,2]
[360042753,1746513036779,-1234.5,0.00019986,2]
[360042754,1746513036790,-455.5390602,0.00019986,2]
[360042755,1746513036799,-522.721369,0.00019986,2]
[360042756,1746513036808,-454.75855946,0.00019986,2]
[360042757,1746513036817,-4655.86679575,0.00019986,2]
[360042758,1746513036832,-2602.0,0.00019986,2]
[360042759,1746513036843,-2889.18649373,0.00019986,2]
[360042760,1746513036855,-2571.79212204,0.00019986,2]
[360042761,1746513036866,-4463.60175122,0.00019986,2]
[360042762,1746513036878,-2848.76756245,0.00019986,2]
[360042763,1746513036894,-921.42887302,0.00019986,2]
[360042764,1746513036910,-626.0537296,0.00019986,2]
[360042765,1746513036921,-17794.42173846,0.00019986,2]
[360042766,1746513036932,-387.13222533,0.00019986,2]
[360042767,1746513036943,-845.72788746,0.00019986,2]
[360042769,1746513037695,-1529.9557274,0.00019986,2]
[360042770,1746513037706,-2593.05683914,0.00019986,2]
[360042771,1746513037755,-1459.59657631,0.00019986,2]
[360042772,1746513037816,-7966.31319309,0.00019986,2]
[360042773,1746513037825,-5925.6313082,0.00019986,2]
[360042774,1746513037834,-168.91563715,0.00019989,2]
[360042775,1746513037844,-265.83751921,0.00019994,2]
[360042776,1746513037854,-86.80885926,0.00019994,2]
[360042777,1746513037932,-380.14667867,0.00019994,2]
[360042778,1746513037942,-455.20013552,0.00019994,2]
[360042779,1746513037952,-200.34161638,0.00019994,2]
[360042780,1746513037962,-500.0,0.00019995,2]
[360042781,1746513037973,-500.0,0.00019995,2]
[360042782,1746513037982,-500.0,0.00019995,2]
[360042783,1746513037992,-500.0,0.00019995,2]
[360042784,1746513038002,-244.04457389,0.00019995,2]
[360042785,1746513038013,-255.95542611,0.00019995,2]
[360042786,1746513038022,-275.68141063,0.00019995,2]
[360042787,1746513038033,-224.31858937,0.00019995,2]
[360042788,1746513038042,-141.80926829,0.00019995,2]
[360042795,1746513039962,-358.19073171,0.00019995,2]
[360042796,1746513039971,-500.0,0.00019995,2]
[360042797,1746513039980,-500.0,0.00019995,2]
[360042798,1746513039990,-500.0,0.00019995,2]
[360042799,1746513040000,-314.91534848,0.00019995,2]
[360042800,1746513040009,-500.0,0.00019995,2]
[360042801,1746513040019,-500.0,0.00019995,2]
[360042802,1746513040028,-500.0,0.00019995,2]
[360042803,1746513040038,-500.0,0.00019995,2]
[360042804,1746513040051,-500.0,0.00019995,2]
[360042805,1746513040060,-500.0,0.00019995,2]
[360042806,1746513040070,-500.0,0.00019995,2]
[360042807,1746513040080,-500.0,0.00019995,2]
[360042808,1746513040089,-500.0,0.00019995,2]
[360042809,1746513040099,-500.0,0.00019995,2]
[360042810,1746513040108,-500.0,0.00019995,2]
[360042811,1746513040118,-500.0,0.00019995,2]
[360042812,1746513040128,-500.0,0.00019995,2]
[360042813,1746513040137,-500.0,0.00019995,2]
[360042814,1746513040147,-500.0,0.00019995,2]
[360042815,1746513040156,-500.0,0.00019995,2]
[360042816,1746513040165,-500.0,0.00019995,2]
[360042817,1746513040175,-500.0,0.00019995,2]
[360042818,1746513040184,-500.0,0.00019995,2]
[360042819,1746513040194,-500.0,0.00019995,2]
[360042820,1746513040203,-500.0,0.00019995,2]
[360042821,1746513040213,-500.0,0.00019995,2]
[360042822,1746513040222,-500.0,0.00019995,2]
[360042823,1746513040231,-500.0,0.00019995,2]
[360042824,1746513040241,-500.0,0.00019995,2]
[360042825,1746513040251,-500.0,0.00019995,2]
[360042826,1746513040260,-500.0,0.00019995,2]
[360042827,1746513040269,-500.0,0.00019995,2]
[360042828,1746513040278,-500.0,0.00019995,2]
[360042829,1746513040288,-500.0,0.00019995,2]
[360042830,1746513040298,-500.0,0.00019995,2]
[360042831,1746513040307,-500.0,0.00019995,2]
[360042832,1746513040317,-500.0,0.00019995,2]
[360042833,1746513040326,-500.0,0.00019995,2]
[360042834,1746513040335,-500.0,0.00019995,2]
[360042835,1746513040344,-500.0,0.00019995,2]
[360042836,1746513040354,-228.08621501,0.00019995,2]
[360042837,1746513040364,-500.0,0.00019995,2]
[360042838,1746513040373,-500.0,0.00019995,2]
[360042839,1746513040383,-500.0,0.00019995,2]
[360042840,1746513040392,-500.0,0.00019995,2]
[360042841,1746513040402,-500.0,0.00019995,2]
[360042842,1746513040411,-500.0,0.00019995,2]
[360042843,1746513040421,-500.0,0.00019995,2]
[360042844,1746513040429,-500.0,0.00019995,2]
[360042845,1746513040439,-500.0,0.00019995,2]
[360042846,1746513040448,-500.0,0.00019995,2]
[360042847,1746513040458,-500.0,0.00019995,2]
[360042848,1746513040467,-500.0,0.00019995,2]
[360042849,1746513040477,-500.0,0.00019995,2]
[360042851,1746513040636,-500.0,0.00019995,2]
[360042852,1746513040647,-500.0,0.00019995,2]
[360042853,1746513040656,-500.0,0.00019995,2]
[360042854,1746513040666,-500.0,0.00019995,2]
[360042855,1746513040675,-500.0,0.00019995,2]
[360042856,1746513040684,-500.0,0.00019995,2]
[360042857,1746513040693,-500.0,0.00019995,2]
[360042858,1746513040703,-500.0,0.00019995,2]
[360042859,1746513040712,-500.0,0.00019995,2]
[360042860,1746513040721,-500.0,0.00019995,2]
[360042861,1746513040730,-500.0,0.00019995,2]
[360042862,1746513040739,-500.0,0.00019995,2]
[360042863,1746513040955,-500.0,0.00019995,2]
[360042864,1746513040965,-500.0,0.00019995,2]
[360042865,1746513040974,-500.0,0.00019995,2]
[360042866,1746513040983,-224.55647831,0.00019995,2]
[360042867,1746513040993,-500.0,0.00019995,2]
[360042868,1746513041002,-500.0,0.00019995,2]
[360042869,1746513041011,-500.0,0.00019995,2]
[360042870,1746513041020,-500.0,0.00019995,2]
[360042871,1746513041029,-500.0,0.00019995,2]
[360042872,1746513041038,-534.41597196,0.00019995,2]
[360042873,1746513041049,-534.41597196,0.00019995,2]
[360042874,1746513041060,-534.41597196,0.00019995,2]
[360042875,1746513041069,-534.41597196,0.00019995,2]
[360042876,1746513041078,-534.41597196,0.00019995,2]
[360042877,1746513041088,-534.41597196,0.00019995,2]
[360042878,1746513041098,-534.41597196,0.00019995,2]
[360042879,1746513041107,-534.41597196,0.00019995,2]
[360042880,1746513041116,-534.41597196,0.00019995,2]
[360042881,1746513041128,-534.41597196,0.00019995,2]
[360042882,1746513041137,-534.41597196,0.00019995,2]
[360042883,1746513041146,-534.41597196,0.00019995,2]
[360042884,1746513041155,-534.41597196,0.00019995,2]
[360042885,1746513041164,-534.41597196,0.00019995,2]
[360042886,1746513041173,-534.41597196,0.00019995,2]
[360042887,1746513041183,-534.41597196,0.00019995,2]
[360042888,1746513041193,-534.41597196,0.00019995,2]
[360042889,1746513041202,-534.41597196,0.00019995,2]
[360042890,1746513041212,-1284.415972,0.00019995,2]
[360042891,1746513041221,-1284.415972,0.00019995,2]
[360042892,1746513041230,-500.0,0.00019995,2]
[360042893,1746513041239,-500.0,0.00019995,2]
[360042894,1746513041249,-300.0,0.00019995,2]
[360042895,1746513041260,-500.0,0.00019995,2]
[360042896,1746513041269,-152.9375377,0.00019996,2]
[360042897,1746513041279,-296.68944907,0.00019996,2]
[360042898,1746513041288,-579.42254713,0.00019996,2]
[360042899,1746513041298,-450.0,0.00019996,2]
[360042900,1746513041307,-181.53754976,0.00019996,2]
[360042901,1746513041316,-342.22300381,0.00019996,2]
[360042902,1746513041325,-450.0,0.00019996,2]
[360042903,1746513041335,-450.0,0.00019996,2]
[360042904,1746513041345,-569.90345288,0.00019996,2]
[360042905,1746513041355,-174.28412825,0.00019996,2]
[360042906,1746513041364,-450.0,0.00019996,2]
[360042907,1746513041376,-450.0,0.00019996,2]
[360042908,1746513041385,-450.0,0.00019996,2]
[360042909,1746513041394,-450.0,0.00019996,2]
[360042910,1746513041403,-549.50452412,0.00019996,2]
[360042911,1746513041414,-450.0,0.00019996,2]
[360042912,1746513041423,-571.69461174,0.00019996,2]
[360042913,1746513041432,-293.64572823,0.00019996,2]
[360042914,1746513041441,-450.0,0.00019996,2]
[360042915,1746513041451,-2607.09,0.00019996,2]
[360042916,1746513041460,-482.88340103,0.00019996,2]
[360042917,1746513041469,-200.0,0.00019996,2]
[360042918,1746513041478,-176.52000285,0.00019996,2]
[360042919,1746513041487,-450.0,0.00019996,2]
[360042920,1746513041496,-450.0,0.00019996,2]
[360042921,1746513041506,-450.0,0.00019996,2]
[360042922,1746513041516,-450.0,0.00019996,2]
[360042923,1746513041526,-450.0,0.00019996,2]
[360042924,1746513041535,-478.89478997,0.00019996,2]
[360042925,1746513041545,-450.0,0.00019996,2]
[360042926,1746513041554,-567.41607355,0.00019996,2]
[360042927,1746513041563,-450.0,0.00019996,2]
[360042928,1746513041573,-450.0,0.00019996,2]
[360042929,1746513041582,-588.57344178,0.00019996,2]
[360042930,1746513041592,-450.0,0.00019996,2]
[360042931,1746513041601,-520.67108747,0.00019996,2]
[360042932,1746513041611,-450.0,0.00019996,2]
[360042933,1746513041621,-640.26,0.00019996,2]
[360042934,1746513041631,-527.59337858,0.00019996,2]
[360042935,1746513041640,-389.58235253,0.00019997,2]
[360042936,1746513041649,-450.0,0.00019997,2]
[360042937,1746513041658,-450.0,0.00019997,2]
[360042938,1746513041668,-457.83552048,0.00019997,2]
[360042939,1746513041677,-488.83857628,0.00019997,2]
[360042940,1746513041686,-450.0,0.00019997,2]
[360042941,1746513041696,-450.0,0.00019997,2]
[360042942,1746513041705,-463.16366444,0.00019997,2]
[360042943,1746513041715,-450.0,0.00019997,2]